Workbook

Sheet 2022년
A1: 거래일자 | B1: 거래처명 | C1: 품목 | D1: 규격 | E1: 단가 | F1: 수량 | G1: 공급가액 | H1: 세액 | I1: 판매금액 | J1: 입금액
A2: 2022-01-03 | B2: 최고무역 | C2: PC1 | D2: i7 | E2: 1170000 | F2: 3 | G2: =표1[[#This Row],[단가]]*표1[[#This Row],[수량]]/110% -> 3190909.091 | H2: =표1[[#This Row],[공급가액]]*10% -> 319090.9091 | I2: =표1[[#This Row],[공급가액]]+표1[[#This Row],[세액]] -> 3510000 | J2: 3510000
A3: 2022-01-03 | B3: 최고무역 | C3: PC 스피커 | D3: 2채널 | E3: 135000 | F3: 3 | G3: =표1[[#This Row],[단가]]*표1[[#This Row],[수량]]/110% -> 368181.8182 | H3: =표1[[#This Row],[공급가액]]*10% -> 36818.18182 | I3: =표1[[#This Row],[공급가액]]+표1[[#This Row],[세액]] -> 405000 | J3: 405000
A4: 2022-01-03 | B4: 최고무역 | C4: PC2 | D4: i5 | E4: 990000 | F4: 3 | G4: =표1[[#This Row],[단가]]*표1[[#This Row],[수량]]/110% -> 2700000 | H4: =표1[[#This Row],[공급가액]]*10% -> 270000 | I4: =표1[[#This Row],[공급가액]]+표1[[#This Row],[세액]] -> 2970000 | J4: 2970000
A5: 2022-01-04 | B5: 파워엔지니어링 | C5: 공유기 | D5: 기가비트 | E5: 72000 | F5: 9 | G5: =표1[[#This Row],[단가]]*표1[[#This Row],[수량]]/110% -> 589090.9091 | H5: =표1[[#This Row],[공급가액]]*10% -> 58909.09091 | I5: =표1[[#This Row],[공급가액]]+표1[[#This Row],[세액]] -> 648000 | J5: 648000
A6: 2022-01-04 | B6: 파워엔지니어링 | C6: PC 스피커 | D6: 2채널 | E6: 135000 | F6: 7 | G6: =표1[[#This Row],[단가]]*표1[[#This Row],[수량]]/110% -> 859090.9091 | H6: =표1[[#This Row],[공급가액]]*10% -> 85909.09091 | I6: =표1[[#This Row],[공급가액]]+표1[[#This Row],[세액]] -> 945000 | J6: 945000
A7: 2022-01-05 | B7: 오케이북아트 | C7: 고급 복사지 | D7: 500매 | E7: 3000 | F7: 2 | G7: =표1[[#This Row],[단가]]*표1[[#This Row],[수량]]/110% -> 5454.545455 | H7: =표1[[#This Row],[공급가액]]*10% -> 545.4545455 | I7: =표1[[#This Row],[공급가액]]+표1[[#This Row],[세액]] -> 6000
A8: 2022-01-05 | B8: 오케이북아트 | C8: PC 스피커 | D8: 2채널 | E8: 135000 | F8: 7 | G8: =표1[[#This Row],[단가]]*표1[[#This Row],[수량]]/110% -> 859090.9091 | H8: =표1[[#This Row],[공급가액]]*10% -> 85909.09091 | I8: =표1[[#This Row],[공급가액]]+표1[[#This Row],[세액]] -> 945000
A9: 2022-01-05 | B9: 오케이북아트 | C9: PC 스피커 | D9: 2채널 | E9: 135000 | F9: 8 | G9: =표1[[#This Row],[단가]]*표1[[#This Row],[수량]]/110% -> 981818.1818 | H9: =표1[[#This Row],[공급가액]]*10% -> 98181.81818 | I9: =표1[[#This Row],[공급가액]]+표1[[#This Row],[세액]] -> 1080000
A10: 2022-01-05 | B10: 소프트아이티㈜ | C10: 잉크젯 프린터 | D10: 컬러 | E10: 324000 | F10: 1 | G10: =표1[[#This Row],[단가]]*표1[[#This Row],[수량]]/110% -> 294545.4545 | H10: =표1[[#This Row],[공급가액]]*10% -> 29454.54545 | I10: =표1[[#This Row],[공급가액]]+표1[[#This Row],[세액]] -> 324000 | J10: 324000
A11: 2022-01-05 | B11: 소프트아이티㈜ | C11: 잉크젯 프린터 | D11: 컬러 | E11: 324000 | F11: 8 | G11: =표1[[#This Row],[단가]]*표1[[#This Row],[수량]]/110% -> 2356363.636 | H11: =표1[[#This Row],[공급가액]]*10% -> 235636.3636 | I11: =표1[[#This Row],[공급가액]]+표1[[#This Row],[세액]] -> 2592000 | J11: 2592000
A12: 2022-01-05 | B12: 소프트아이티㈜ | C12: 고급 복사지 | D12: 500매 | E12: 3000 | F12: 7 | G12: =표1[[#This Row],[단가]]*표1[[#This Row],[수량]]/110% -> 19090.90909 | H12: =표1[[#This Row],[공급가액]]*10% -> 1909.090909 | I12: =표1[[#This Row],[공급가액]]+표1[[#This Row],[세액]] -> 21000 | J12: 21000
A13: 2022-01-06 | B13: 이한아이티 | C13: 잉크젯 프린터 | D13: 컬러 | E13: 324000 | F13: 2 | G13: =표1[[#This Row],[단가]]*표1[[#This Row],[수량]]/110% -> 589090.9091 | H13: =표1[[#This Row],[공급가액]]*10% -> 58909.09091 | I13: =표1[[#This Row],[공급가액]]+표1[[#This Row],[세액]] -> 648000 | J13: 648000
A14: 2022-01-06 | B14: 이한아이티 | C14: 레이저 복합기 | D14: 흑백 | E14: 253800 | F14: 3 | G14: =표1[[#This Row],[단가]]*표1[[#This Row],[수량]]/110% -> 692181.8182 | H14: =표1[[#This Row],[공급가액]]*10% -> 69218.18182 | I14: =표1[[#This Row],[공급가액]]+표1[[#This Row],[세액]] -> 761400 | J14: 761400
A15: 2022-01-06 | B15: 이한아이티 | C15: 고급 복사지 | D15: 500매 | E15: 3000 | F15: 8 | G15: =표1[[#This Row],[단가]]*표1[[#This Row],[수량]]/110% -> 21818.18182 | H15: =표1[[#This Row],[공급가액]]*10% -> 2181.818182 | I15: =표1[[#This Row],[공급가액]]+표1[[#This Row],[세액]] -> 24000 | J15: 24000 | M15: =ROW()=CELL("row") -> FALSE
A16: 2022-01-07 | B16: 오케이북아트 | C16: 노트북2 | D16: 1.0~1.3kg | E16: 1080000 | F16: 4 | G16: =표1[[#This Row],[단가]]*표1[[#This Row],[수량]]/110% -> 3927272.727 | H16: =표1[[#This Row],[공급가액]]*10% -> 392727.2727 | I16: =표1[[#This Row],[공급가액]]+표1[[#This Row],[세액]] -> 4320000
A17: 2022-01-07 | B17: 오케이북아트 | C17: 외장 하드 | D17: USB 3.0 | E17: 58500 | F17: 6 | G17: =표1[[#This Row],[단가]]*표1[[#This Row],[수량]]/110% -> 319090.9091 | H17: =표1[[#This Row],[공급가액]]*10% -> 31909.09091 | I17: =표1[[#This Row],[공급가액]]+표1[[#This Row],[세액]] -> 351000
A18: 2022-01-07 | B18: 오케이북아트 | C18: 모니터1 | D18: 24인치 | E18: 180000 | F18: 2 | G18: =표1[[#This Row],[단가]]*표1[[#This Row],[수량]]/110% -> 327272.7273 | H18: =표1[[#This Row],[공급가액]]*10% -> 32727.27273 | I18: =표1[[#This Row],[공급가액]]+표1[[#This Row],[세액]] -> 360000
A19: 2022-01-10 | B19: 이지스퍼블리싱 | C19: 레이저 프린터 | D19: 흑백 | E19: 320000 | F19: 3 | G19: =표1[[#This Row],[단가]]*표1[[#This Row],[수량]]/110% -> 872727.2727 | H19: =표1[[#This Row],[공급가액]]*10% -> 87272.72727 | I19: =표1[[#This Row],[공급가액]]+표1[[#This Row],[세액]] -> 960000 | J19: 960000 | M19: =column
A20: 2022-01-10 | B20: 이지스퍼블리싱 | C20: 잉크젯 프린터 | D20: 컬러 | E20: 324000 | F20: 6 | G20: =표1[[#This Row],[단가]]*표1[[#This Row],[수량]]/110% -> 1767272.727 | H20: =표1[[#This Row],[공급가액]]*10% -> 176727.2727 | I20: =표1[[#This Row],[공급가액]]+표1[[#This Row],[세액]] -> 1944000 | J20: 1944000
A21: 2022-01-10 | B21: 이지스퍼블리싱 | C21: PC 스피커 | D21: 2채널 | E21: 135000 | F21: 10 | G21: =표1[[#This Row],[단가]]*표1[[#This Row],[수량]]/110% -> 1227272.727 | H21: =표1[[#This Row],[공급가액]]*10% -> 122727.2727 | I21: =표1[[#This Row],[공급가액]]+표1[[#This Row],[세액]] -> 1350000 | J21: 1350000
A22: 2022-01-11 | B22: 킴앤정스튜디오 | C22: 공유기 | D22: 기가비트 | E22: 72000 | F22: 5 | G22: =표1[[#This Row],[단가]]*표1[[#This Row],[수량]]/110% -> 327272.7273 | H22: =표1[[#This Row],[공급가액]]*10% -> 32727.27273 | I22: =표1[[#This Row],[공급가액]]+표1[[#This Row],[세액]] -> 360000
A23: 2022-01-11 | B23: 킴앤정스튜디오 | C23: 마우스1 | D23: 유선 | E23: 13500 | F23: 1 | G23: =표1[[#This Row],[단가]]*표1[[#This Row],[수량]]/110% -> 12272.72727 | H23: =표1[[#This Row],[공급가액]]*10% -> 1227.272727 | I23: =표1[[#This Row],[공급가액]]+표1[[#This Row],[세액]] -> 13500
A24: 2022-01-11 | B24: 킴앤정스튜디오 | C24: PC 스피커 | D24: 2채널 | E24: 135000 | F24: 7 | G24: =표1[[#This Row],[단가]]*표1[[#This Row],[수량]]/110% -> 859090.9091 | H24: =표1[[#This Row],[공급가액]]*10% -> 85909.09091 | I24: =표1[[#This Row],[공급가액]]+표1[[#This Row],[세액]] -> 945000
A25: 2022-01-11 | B25: 킴앤정스튜디오 | C25: 마우스1 | D25: 유선 | E25: 13500 | F25: 8 | G25: =표1[[#This Row],[단가]]*표1[[#This Row],[수량]]/110% -> 98181.81818 | H25: =표1[[#This Row],[공급가액]]*10% -> 9818.181818 | I25: =표1[[#This Row],[공급가액]]+표1[[#This Row],[세액]] -> 108000
A26: 2022-01-12 | B26: 산들닷컴 | C26: 노트북2 | D26: 1.0~1.3kg | E26: 1080000 | F26: 9 | G26: =표1[[#This Row],[단가]]*표1[[#This Row],[수량]]/110% -> 8836363.636 | H26: =표1[[#This Row],[공급가액]]*10% -> 883636.3636 | I26: =표1[[#This Row],[공급가액]]+표1[[#This Row],[세액]] -> 9720000
A27: 2022-01-12 | B27: 산들닷컴 | C27: PC1 | D27: i7 | E27: 1170000 | F27: 2 | G27: =표1[[#This Row],[단가]]*표1[[#This Row],[수량]]/110% -> 2127272.727 | H27: =표1[[#This Row],[공급가액]]*10% -> 212727.2727 | I27: =표1[[#This Row],[공급가액]]+표1[[#This Row],[세액]] -> 2340000 | J27: 2340000
A28: 2022-01-13 | B28: 부경아티아이 | C28: PC 스피커 | D28: 2채널 | E28: 135000 | F28: 6 | G28: =표1[[#This Row],[단가]]*표1[[#This Row],[수량]]/110% -> 736363.6364 | H28: =표1[[#This Row],[공급가액]]*10% -> 73636.36364 | I28: =표1[[#This Row],[공급가액]]+표1[[#This Row],[세액]] -> 810000 | J28: 810000
A29: 2022-01-13 | B29: 부경아티아이 | C29: 마우스1 | D29: 유선 | E29: 13500 | F29: 8 | G29: =표1[[#This Row],[단가]]*표1[[#This Row],[수량]]/110% -> 98181.81818 | H29: =표1[[#This Row],[공급가액]]*10% -> 9818.181818 | I29: =표1[[#This Row],[공급가액]]+표1[[#This Row],[세액]] -> 108000 | J29: 108000
A30: 2022-01-13 | B30: 부경아티아이 | C30: 마우스1 | D30: 유선 | E30: 13500 | F30: 8 | G30: =표1[[#This Row],[단가]]*표1[[#This Row],[수량]]/110% -> 98181.81818 | H30: =표1[[#This Row],[공급가액]]*10% -> 9818.181818 | I30: =표1[[#This Row],[공급가액]]+표1[[#This Row],[세액]] -> 108000 | J30: 108000
A31: 2022-01-14 | B31: 최고무역 | C31: 마우스1 | D31: 유선 | E31: 13500 | F31: 3 | G31: =표1[[#This Row],[단가]]*표1[[#This Row],[수량]]/110% -> 36818.18182 | H31: =표1[[#This Row],[공급가액]]*10% -> 3681.818182 | I31: =표1[[#This Row],[공급가액]]+표1[[#This Row],[세액]] -> 40500 | J31: 40500
A32: 2022-01-14 | B32: 최고무역 | C32: 고급 복사지 | D32: 500매 | E32: 3000 | F32: 10 | G32: =표1[[#This Row],[단가]]*표1[[#This Row],[수량]]/110% -> 27272.72727 | H32: =표1[[#This Row],[공급가액]]*10% -> 2727.272727 | I32: =표1[[#This Row],[공급가액]]+표1[[#This Row],[세액]] -> 30000 | J32: 30000
A33: 2022-01-17 | B33: 최고무역 | C33: 레이저 프린터 | D33: 흑백 | E33: 320000 | F33: 5 | G33: =표1[[#This Row],[단가]]*표1[[#This Row],[수량]]/110% -> 1454545.455 | H33: =표1[[#This Row],[공급가액]]*10% -> 145454.5455 | I33: =표1[[#This Row],[공급가액]]+표1[[#This Row],[세액]] -> 1600000 | J33: 1600000
A34: 2022-01-17 | B34: 파워엔지니어링 | C34: 공유기 | D34: 기가비트 | E34: 72000 | F34: 2 | G34: =표1[[#This Row],[단가]]*표1[[#This Row],[수량]]/110% -> 130909.0909 | H34: =표1[[#This Row],[공급가액]]*10% -> 13090.90909 | I34: =표1[[#This Row],[공급가액]]+표1[[#This Row],[세액]] -> 144000
A35: 2022-01-17 | B35: 파워엔지니어링 | C35: 마우스1 | D35: 유선 | E35: 13500 | F35: 4 | G35: =표1[[#This Row],[단가]]*표1[[#This Row],[수량]]/110% -> 49090.90909 | H35: =표1[[#This Row],[공급가액]]*10% -> 4909.090909 | I35: =표1[[#This Row],[공급가액]]+표1[[#This Row],[세액]] -> 54000
A36: 2022-01-18 | B36: 동구디자인센터 | C36: 마우스1 | D36: 유선 | E36: 13500 | F36: 8 | G36: =표1[[#This Row],[단가]]*표1[[#This Row],[수량]]/110% -> 98181.81818 | H36: =표1[[#This Row],[공급가액]]*10% -> 9818.181818 | I36: =표1[[#This Row],[공급가액]]+표1[[#This Row],[세액]] -> 108000 | J36: 108000
A37: 2022-01-18 | B37: 동구디자인센터 | C37: 마우스1 | D37: 유선 | E37: 13500 | F37: 4 | G37: =표1[[#This Row],[단가]]*표1[[#This Row],[수량]]/110% -> 49090.90909 | H37: =표1[[#This Row],[공급가액]]*10% -> 4909.090909 | I37: =표1[[#This Row],[공급가액]]+표1[[#This Row],[세액]] -> 54000 | J37: 54000
A38: 2022-01-18 | B38: 동구디자인센터 | C38: 모니터1 | D38: 24인치 | E38: 180000 | F38: 6 | G38: =표1[[#This Row],[단가]]*표1[[#This Row],[수량]]/110% -> 981818.1818 | H38: =표1[[#This Row],[공급가액]]*10% -> 98181.81818 | I38: =표1[[#This Row],[공급가액]]+표1[[#This Row],[세액]] -> 1080000 | J38: 1080000
A39: 2022-01-18 | B39: 동구디자인센터 | C39: 노트북1 | D39: 1kg 미만 | E39: 1260000 | F39: 3 | G39: =표1[[#This Row],[단가]]*표1[[#This Row],[수량]]/110% -> 3436363.636 | H39: =표1[[#This Row],[공급가액]]*10% -> 343636.3636 | I39: =표1[[#This Row],[공급가액]]+표1[[#This Row],[세액]] -> 3780000 | J39: 3780000
A40: 2022-01-18 | B40: 윤엔터테인먼트 | C40: 외장 하드 | D40: USB 3.0 | E40: 58500 | F40: 10 | G40: =표1[[#This Row],[단가]]*표1[[#This Row],[수량]]/110% -> 531818.1818 | H40: =표1[[#This Row],[공급가액]]*10% -> 53181.81818 | I40: =표1[[#This Row],[공급가액]]+표1[[#This Row],[세액]] -> 585000 | J40: 585000
A41: 2022-01-18 | B41: 윤엔터테인먼트 | C41: 모니터1 | D41: 24인치 | E41: 180000 | F41: 7 | G41: =표1[[#This Row],[단가]]*표1[[#This Row],[수량]]/110% -> 1145454.545 | H41: =표1[[#This Row],[공급가액]]*10% -> 114545.4545 | I41: =표1[[#This Row],[공급가액]]+표1[[#This Row],[세액]] -> 1260000 | J41: 1260000
A42: 2022-01-19 | B42: 한국정보대학 | C42: 모니터2 | D42: 27인치 | E42: 270000 | F42: 10 | G42: =표1[[#This Row],[단가]]*표1[[#This Row],[수량]]/110% -> 2454545.455 | H42: =표1[[#This Row],[공급가액]]*10% -> 245454.5455 | I42: =표1[[#This Row],[공급가액]]+표1[[#This Row],[세액]] -> 2700000 | J42: 2700000
A43: 2022-01-19 | B43: 한국정보대학 | C43: 외장 하드 | D43: USB 3.0 | E43: 58500 | F43: 1 | G43: =표1[[#This Row],[단가]]*표1[[#This Row],[수량]]/110% -> 53181.81818 | H43: =표1[[#This Row],[공급가액]]*10% -> 5318.181818 | I43: =표1[[#This Row],[공급가액]]+표1[[#This Row],[세액]] -> 58500 | J43: 58500
A44: 2022-01-19 | B44: 한국정보대학 | C44: 키보드 | D44: 멤브레인 | E44: 18000 | F44: 3 | G44: =표1[[#This Row],[단가]]*표1[[#This Row],[수량]]/110% -> 49090.90909 | H44: =표1[[#This Row],[공급가액]]*10% -> 4909.090909 | I44: =표1[[#This Row],[공급가액]]+표1[[#This Row],[세액]] -> 54000 | J44: 54000
A45: 2022-01-20 | B45: 최고무역 | C45: 공유기 | D45: 기가비트 | E45: 72000 | F45: 5 | G45: =표1[[#This Row],[단가]]*표1[[#This Row],[수량]]/110% -> 327272.7273 | H45: =표1[[#This Row],[공급가액]]*10% -> 32727.27273 | I45: =표1[[#This Row],[공급가액]]+표1[[#This Row],[세액]] -> 360000 | J45: 360000
A46: 2022-01-20 | B46: 최고무역 | C46: 마우스1 | D46: 유선 | E46: 13500 | F46: 7 | G46: =표1[[#This Row],[단가]]*표1[[#This Row],[수량]]/110% -> 85909.09091 | H46: =표1[[#This Row],[공급가액]]*10% -> 8590.909091 | I46: =표1[[#This Row],[공급가액]]+표1[[#This Row],[세액]] -> 94500 | J46: 94500
A47: 2022-01-20 | B47: 최고무역 | C47: PC 스피커 | D47: 2채널 | E47: 135000 | F47: 2 | G47: =표1[[#This Row],[단가]]*표1[[#This Row],[수량]]/110% -> 245454.5455 | H47: =표1[[#This Row],[공급가액]]*10% -> 24545.45455 | I47: =표1[[#This Row],[공급가액]]+표1[[#This Row],[세액]] -> 270000 | J47: 270000
A48: 2022-01-20 | B48: 최고무역 | C48: 레이저 복합기 | D48: 흑백 | E48: 253800 | F48: 5 | G48: =표1[[#This Row],[단가]]*표1[[#This Row],[수량]]/110% -> 1153636.364 | H48: =표1[[#This Row],[공급가액]]*10% -> 115363.6364 | I48: =표1[[#This Row],[공급가액]]+표1[[#This Row],[세액]] -> 1269000 | J48: 1269000
A49: 2022-01-21 | B49: 영오디자인 | C49: 레이저 복합기 | D49: 흑백 | E49: 253800 | F49: 7 | G49: =표1[[#This Row],[단가]]*표1[[#This Row],[수량]]/110% -> 1615090.909 | H49: =표1[[#This Row],[공급가액]]*10% -> 161509.0909 | I49: =표1[[#This Row],[공급가액]]+표1[[#This Row],[세액]] -> 1776600 | J49: 1776600
A50: 2022-01-21 | B50: 영오디자인 | C50: 레이저 프린터 | D50: 흑백 | E50: 320000 | F50: 1 | G50: =표1[[#This Row],[단가]]*표1[[#This Row],[수량]]/110% -> 290909.0909 | H50: =표1[[#This Row],[공급가액]]*10% -> 29090.90909 | I50: =표1[[#This Row],[공급가액]]+표1[[#This Row],[세액]] -> 320000 | J50: 320000
A51: 2022-01-24 | B51: 도서출판나무그늘 | C51: 외장 하드 | D51: USB 3.0 | E51: 58500 | F51: 3 | G51: =표1[[#This Row],[단가]]*표1[[#This Row],[수량]]/110% -> 159545.4545 | H51: =표1[[#This Row],[공급가액]]*10% -> 15954.54545 | I51: =표1[[#This Row],[공급가액]]+표1[[#This Row],[세액]] -> 175500 | J51: 175500
A52: 2022-01-24 | B52: 도서출판나무그늘 | C52: PC 스피커 | D52: 2채널 | E52: 135000 | F52: 4 | G52: =표1[[#This Row],[단가]]*표1[[#This Row],[수량]]/110% -> 490909.0909 | H52: =표1[[#This Row],[공급가액]]*10% -> 49090.90909 | I52: =표1[[#This Row],[공급가액]]+표1[[#This Row],[세액]] -> 540000
A53: 2022-01-25 | B53: 서울종합기술 | C53: 잉크젯 프린터 | D53: 컬러 | E53: 324000 | F53: 6 | G53: =표1[[#This Row],[단가]]*표1[[#This Row],[수량]]/110% -> 1767272.727 | H53: =표1[[#This Row],[공급가액]]*10% -> 176727.2727 | I53: =표1[[#This Row],[공급가액]]+표1[[#This Row],[세액]] -> 1944000
A54: 2022-01-26 | B54: 산들닷컴 | C54: 고급 복사지 | D54: 500매 | E54: 3000 | F54: 3 | G54: =표1[[#This Row],[단가]]*표1[[#This Row],[수량]]/110% -> 8181.818182 | H54: =표1[[#This Row],[공급가액]]*10% -> 818.1818182 | I54: =표1[[#This Row],[공급가액]]+표1[[#This Row],[세액]] -> 9000 | J54: 9000
A55: 2022-01-26 | B55: 산들닷컴 | C55: 마우스1 | D55: 유선 | E55: 13500 | F55: 8 | G55: =표1[[#This Row],[단가]]*표1[[#This Row],[수량]]/110% -> 98181.81818 | H55: =표1[[#This Row],[공급가액]]*10% -> 9818.181818 | I55: =표1[[#This Row],[공급가액]]+표1[[#This Row],[세액]] -> 108000 | J55: 108000
A56: 2022-01-26 | B56: 산들닷컴 | C56: PC 스피커 | D56: 2채널 | E56: 135000 | F56: 8 | G56: =표1[[#This Row],[단가]]*표1[[#This Row],[수량]]/110% -> 981818.1818 | H56: =표1[[#This Row],[공급가액]]*10% -> 98181.81818 | I56: =표1[[#This Row],[공급가액]]+표1[[#This Row],[세액]] -> 1080000 | J56: 1080000
A57: 2022-01-27 | B57: 우리열린교육 | C57: 마우스1 | D57: 유선 | E57: 13500 | F57: 8 | G57: =표1[[#This Row],[단가]]*표1[[#This Row],[수량]]/110% -> 98181.81818 | H57: =표1[[#This Row],[공급가액]]*10% -> 9818.181818 | I57: =표1[[#This Row],[공급가액]]+표1[[#This Row],[세액]] -> 108000 | J57: 108000
A58: 2022-01-27 | B58: 우리열린교육 | C58: 마우스1 | D58: 유선 | E58: 13500 | F58: 5 | G58: =표1[[#This Row],[단가]]*표1[[#This Row],[수량]]/110% -> 61363.63636 | H58: =표1[[#This Row],[공급가액]]*10% -> 6136.363636 | I58: =표1[[#This Row],[공급가액]]+표1[[#This Row],[세액]] -> 67500 | J58: 67500
A59: 2022-01-28 | B59: 윤엔터테인먼트 | C59: PC 스피커 | D59: 2채널 | E59: 135000 | F59: 9 | G59: =표1[[#This Row],[단가]]*표1[[#This Row],[수량]]/110% -> 1104545.455 | H59: =표1[[#This Row],[공급가액]]*10% -> 110454.5455 | I59: =표1[[#This Row],[공급가액]]+표1[[#This Row],[세액]] -> 1215000 | J59: 1215000
A60: 2022-01-28 | B60: 윤엔터테인먼트 | C60: 마우스1 | D60: 유선 | E60: 13500 | F60: 6 | G60: =표1[[#This Row],[단가]]*표1[[#This Row],[수량]]/110% -> 73636.36364 | H60: =표1[[#This Row],[공급가액]]*10% -> 7363.636364 | I60: =표1[[#This Row],[공급가액]]+표1[[#This Row],[세액]] -> 81000 | J60: 81000
A61: 2022-01-28 | B61: 서울종합기술 | C61: 고급 복사지 | D61: 500매 | E61: 3000 | F61: 6 | G61: =표1[[#This Row],[단가]]*표1[[#This Row],[수량]]/110% -> 16363.63636 | H61: =표1[[#This Row],[공급가액]]*10% -> 1636.363636 | I61: =표1[[#This Row],[공급가액]]+표1[[#This Row],[세액]] -> 18000 | J61: 18000
A62: 2022-01-28 | B62: 서울종합기술 | C62: PC1 | D62: i7 | E62: 1170000 | F62: 2 | G62: =표1[[#This Row],[단가]]*표1[[#This Row],[수량]]/110% -> 2127272.727 | H62: =표1[[#This Row],[공급가액]]*10% -> 212727.2727 | I62: =표1[[#This Row],[공급가액]]+표1[[#This Row],[세액]] -> 2340000 | J62: 2340000
A63: 2022-01-28 | B63: 이한아이티 | C63: 노트북1 | D63: 1kg 미만 | E63: 1260000 | F63: 3 | G63: =표1[[#This Row],[단가]]*표1[[#This Row],[수량]]/110% -> 3436363.636 | H63: =표1[[#This Row],[공급가액]]*10% -> 343636.3636 | I63: =표1[[#This Row],[공급가액]]+표1[[#This Row],[세액]] -> 3780000
A64: 2022-02-01 | B64: 한국정보대학 | C64: 외장 하드 | D64: USB 3.0 | E64: 58500 | F64: 3 | G64: =표1[[#This Row],[단가]]*표1[[#This Row],[수량]]/110% -> 159545.4545 | H64: =표1[[#This Row],[공급가액]]*10% -> 15954.54545 | I64: =표1[[#This Row],[공급가액]]+표1[[#This Row],[세액]] -> 175500
A65: 2022-02-01 | B65: 한국정보대학 | C65: 고급 복사지 | D65: 500매 | E65: 3000 | F65: 9 | G65: =표1[[#This Row],[단가]]*표1[[#This Row],[수량]]/110% -> 24545.45455 | H65: =표1[[#This Row],[공급가액]]*10% -> 2454.545455 | I65: =표1[[#This Row],[공급가액]]+표1[[#This Row],[세액]] -> 27000
A66: 2022-02-01 | B66: 한국정보대학 | C66: 레이저 프린터 | D66: 흑백 | E66: 320000 | F66: 2 | G66: =표1[[#This Row],[단가]]*표1[[#This Row],[수량]]/110% -> 581818.1818 | H66: =표1[[#This Row],[공급가액]]*10% -> 58181.81818 | I66: =표1[[#This Row],[공급가액]]+표1[[#This Row],[세액]] -> 640000
A67: 2022-02-02 | B67: 우리열린교육 | C67: 키보드 | D67: 멤브레인 | E67: 18000 | F67: 9 | G67: =표1[[#This Row],[단가]]*표1[[#This Row],[수량]]/110% -> 147272.7273 | H67: =표1[[#This Row],[공급가액]]*10% -> 14727.27273 | I67: =표1[[#This Row],[공급가액]]+표1[[#This Row],[세액]] -> 162000
A68: 2022-02-02 | B68: 우리열린교육 | C68: PC 스피커 | D68: 2채널 | E68: 135000 | F68: 3 | G68: =표1[[#This Row],[단가]]*표1[[#This Row],[수량]]/110% -> 368181.8182 | H68: =표1[[#This Row],[공급가액]]*10% -> 36818.18182 | I68: =표1[[#This Row],[공급가액]]+표1[[#This Row],[세액]] -> 405000 | J68: 405000
A69: 2022-02-02 | B69: 우리열린교육 | C69: 마우스2 | D69: 무선 | E69: 21600 | F69: 4 | G69: =표1[[#This Row],[단가]]*표1[[#This Row],[수량]]/110% -> 78545.45455 | H69: =표1[[#This Row],[공급가액]]*10% -> 7854.545455 | I69: =표1[[#This Row],[공급가액]]+표1[[#This Row],[세액]] -> 86400 | J69: 86400
A70: 2022-02-02 | B70: 우리열린교육 | C70: 외장 하드 | D70: USB 3.0 | E70: 58500 | F70: 1 | G70: =표1[[#This Row],[단가]]*표1[[#This Row],[수량]]/110% -> 53181.81818 | H70: =표1[[#This Row],[공급가액]]*10% -> 5318.181818 | I70: =표1[[#This Row],[공급가액]]+표1[[#This Row],[세액]] -> 58500 | J70: 58500
A71: 2022-02-02 | B71: 우리열린교육 | C71: 고급 복사지 | D71: 500매 | E71: 3000 | F71: 10 | G71: =표1[[#This Row],[단가]]*표1[[#This Row],[수량]]/110% -> 27272.72727 | H71: =표1[[#This Row],[공급가액]]*10% -> 2727.272727 | I71: =표1[[#This Row],[공급가액]]+표1[[#This Row],[세액]] -> 30000 | J71: 30000
A72: 2022-02-03 | B72: 최고무역 | C72: 고급 복사지 | D72: 500매 | E72: 3000 | F72: 2 | G72: =표1[[#This Row],[단가]]*표1[[#This Row],[수량]]/110% -> 5454.545455 | H72: =표1[[#This Row],[공급가액]]*10% -> 545.4545455 | I72: =표1[[#This Row],[공급가액]]+표1[[#This Row],[세액]] -> 6000 | J72: 6000
A73: 2022-02-03 | B73: 최고무역 | C73: 마우스1 | D73: 유선 | E73: 13500 | F73: 5 | G73: =표1[[#This Row],[단가]]*표1[[#This Row],[수량]]/110% -> 61363.63636 | H73: =표1[[#This Row],[공급가액]]*10% -> 6136.363636 | I73: =표1[[#This Row],[공급가액]]+표1[[#This Row],[세액]] -> 67500 | J73: 67500
A74: 2022-02-04 | B74: 이한아이티 | C74: 고급 복사지 | D74: 500매 | E74: 3000 | F74: 4 | G74: =표1[[#This Row],[단가]]*표1[[#This Row],[수량]]/110% -> 10909.09091 | H74: =표1[[#This Row],[공급가액]]*10% -> 1090.909091 | I74: =표1[[#This Row],[공급가액]]+표1[[#This Row],[세액]] -> 12000 | J74: 12000
A75: 2022-02-04 | B75: 이한아이티 | C75: 잉크젯 프린터 | D75: 컬러 | E75: 324000 | F75: 8 | G75: =표1[[#This Row],[단가]]*표1[[#This Row],[수량]]/110% -> 2356363.636 | H75: =표1[[#This Row],[공급가액]]*10% -> 235636.3636 | I75: =표1[[#This Row],[공급가액]]+표1[[#This Row],[세액]] -> 2592000 | J75: 2592000
A76: 2022-02-07 | B76: 교차로전자출판 | C76: 외장 하드 | D76: USB 3.0 | E76: 58500 | F76: 3 | G76: =표1[[#This Row],[단가]]*표1[[#This Row],[수량]]/110% -> 159545.4545 | H76: =표1[[#This Row],[공급가액]]*10% -> 15954.54545 | I76: =표1[[#This Row],[공급가액]]+표1[[#This Row],[세액]] -> 175500 | J76: 175500
A77: 2022-02-07 | B77: 교차로전자출판 | C77: PC2 | D77: i5 | E77: 990000 | F77: 5 | G77: =표1[[#This Row],[단가]]*표1[[#This Row],[수량]]/110% -> 4500000 | H77: =표1[[#This Row],[공급가액]]*10% -> 450000 | I77: =표1[[#This Row],[공급가액]]+표1[[#This Row],[세액]] -> 4950000 | J77: 4950000
A78: 2022-02-08 | B78: 최고무역 | C78: PC 스피커 | D78: 2채널 | E78: 135000 | F78: 3 | G78: =표1[[#This Row],[단가]]*표1[[#This Row],[수량]]/110% -> 368181.8182 | H78: =표1[[#This Row],[공급가액]]*10% -> 36818.18182 | I78: =표1[[#This Row],[공급가액]]+표1[[#This Row],[세액]] -> 405000 | J78: 405000
A79: 2022-02-08 | B79: 최고무역 | C79: PC2 | D79: i5 | E79: 990000 | F79: 4 | G79: =표1[[#This Row],[단가]]*표1[[#This Row],[수량]]/110% -> 3600000 | H79: =표1[[#This Row],[공급가액]]*10% -> 360000 | I79: =표1[[#This Row],[공급가액]]+표1[[#This Row],[세액]] -> 3960000 | J79: 3960000
A80: 2022-02-09 | B80: 최고무역 | C80: 공유기 | D80: 기가비트 | E80: 72000 | F80: 4 | G80: =표1[[#This Row],[단가]]*표1[[#This Row],[수량]]/110% -> 261818.1818 | H80: =표1[[#This Row],[공급가액]]*10% -> 26181.81818 | I80: =표1[[#This Row],[공급가액]]+표1[[#This Row],[세액]] -> 288000 | J80: 288000
A81: 2022-02-09 | B81: 최고무역 | C81: 고급 복사지 | D81: 500매 | E81: 3000 | F81: 10 | G81: =표1[[#This Row],[단가]]*표1[[#This Row],[수량]]/110% -> 27272.72727 | H81: =표1[[#This Row],[공급가액]]*10% -> 2727.272727 | I81: =표1[[#This Row],[공급가액]]+표1[[#This Row],[세액]] -> 30000 | J81: 30000
A82: 2022-02-09 | B82: 최고무역 | C82: 노트북2 | D82: 1.0~1.3kg | E82: 1080000 | F82: 2 | G82: =표1[[#This Row],[단가]]*표1[[#This Row],[수량]]/110% -> 1963636.364 | H82: =표1[[#This Row],[공급가액]]*10% -> 196363.6364 | I82: =표1[[#This Row],[공급가액]]+표1[[#This Row],[세액]] -> 2160000 | J82: 8640000
A83: 2022-02-09 | B83: 최고무역 | C83: PC2 | D83: i5 | E83: 990000 | F83: 5 | G83: =표1[[#This Row],[단가]]*표1[[#This Row],[수량]]/110% -> 4500000 | H83: =표1[[#This Row],[공급가액]]*10% -> 450000 | I83: =표1[[#This Row],[공급가액]]+표1[[#This Row],[세액]] -> 4950000 | J83: 9900000
A84: 2022-02-10 | B84: 킴앤정스튜디오 | C84: 잉크젯 프린터 | D84: 컬러 | E84: 324000 | F84: 9 | G84: =표1[[#This Row],[단가]]*표1[[#This Row],[수량]]/110% -> 2650909.091 | H84: =표1[[#This Row],[공급가액]]*10% -> 265090.9091 | I84: =표1[[#This Row],[공급가액]]+표1[[#This Row],[세액]] -> 2916000 | J84: 2916000
A85: 2022-02-11 | B85: 제이제이컴퍼니 | C85: 마우스1 | D85: 유선 | E85: 13500 | F85: 8 | G85: =표1[[#This Row],[단가]]*표1[[#This Row],[수량]]/110% -> 98181.81818 | H85: =표1[[#This Row],[공급가액]]*10% -> 9818.181818 | I85: =표1[[#This Row],[공급가액]]+표1[[#This Row],[세액]] -> 108000 | J85: 108000
A86: 2022-02-11 | B86: 제이제이컴퍼니 | C86: 레이저 복합기 | D86: 흑백 | E86: 253800 | F86: 10 | G86: =표1[[#This Row],[단가]]*표1[[#This Row],[수량]]/110% -> 2307272.727 | H86: =표1[[#This Row],[공급가액]]*10% -> 230727.2727 | I86: =표1[[#This Row],[공급가액]]+표1[[#This Row],[세액]] -> 2538000 | J86: 2538000
A87: 2022-02-11 | B87: 제이제이컴퍼니 | C87: 노트북2 | D87: 1.0~1.3kg | E87: 1080000 | F87: 8 | G87: =표1[[#This Row],[단가]]*표1[[#This Row],[수량]]/110% -> 7854545.455 | H87: =표1[[#This Row],[공급가액]]*10% -> 785454.5455 | I87: =표1[[#This Row],[공급가액]]+표1[[#This Row],[세액]] -> 8640000 | J87: 8640000
A88: 2022-02-11 | B88: 최고무역 | C88: PC1 | D88: i7 | E88: 1170000 | F88: 2 | G88: =표1[[#This Row],[단가]]*표1[[#This Row],[수량]]/110% -> 2127272.727 | H88: =표1[[#This Row],[공급가액]]*10% -> 212727.2727 | I88: =표1[[#This Row],[공급가액]]+표1[[#This Row],[세액]] -> 2340000 | J88: 5850000
A89: 2022-02-11 | B89: 최고무역 | C89: PC2 | D89: i5 | E89: 990000 | F89: 2 | G89: =표1[[#This Row],[단가]]*표1[[#This Row],[수량]]/110% -> 1800000 | H89: =표1[[#This Row],[공급가액]]*10% -> 180000 | I89: =표1[[#This Row],[공급가액]]+표1[[#This Row],[세액]] -> 1980000 | J89: 1980000
A90: 2022-02-11 | B90: 최고무역 | C90: 노트북1 | D90: 1kg 미만 | E90: 1260000 | F90: 2 | G90: =표1[[#This Row],[단가]]*표1[[#This Row],[수량]]/110% -> 2290909.091 | H90: =표1[[#This Row],[공급가액]]*10% -> 229090.9091 | I90: =표1[[#This Row],[공급가액]]+표1[[#This Row],[세액]] -> 2520000 | J90: 2520000
A91: 2022-02-14 | B91: 제이제이컴퍼니 | C91: PC 스피커 | D91: 2채널 | E91: 135000 | F91: 5 | G91: =표1[[#This Row],[단가]]*표1[[#This Row],[수량]]/110% -> 613636.3636 | H91: =표1[[#This Row],[공급가액]]*10% -> 61363.63636 | I91: =표1[[#This Row],[공급가액]]+표1[[#This Row],[세액]] -> 675000 | J91: 675000
A92: 2022-02-14 | B92: 제이제이컴퍼니 | C92: PC1 | D92: i7 | E92: 1170000 | F92: 4 | G92: =표1[[#This Row],[단가]]*표1[[#This Row],[수량]]/110% -> 4254545.455 | H92: =표1[[#This Row],[공급가액]]*10% -> 425454.5455 | I92: =표1[[#This Row],[공급가액]]+표1[[#This Row],[세액]] -> 4680000 | J92: 4680000
A93: 2022-02-15 | B93: 제이제이컴퍼니 | C93: PC1 | D93: i7 | E93: 1170000 | F93: 4 | G93: =표1[[#This Row],[단가]]*표1[[#This Row],[수량]]/110% -> 4254545.455 | H93: =표1[[#This Row],[공급가액]]*10% -> 425454.5455 | I93: =표1[[#This Row],[공급가액]]+표1[[#This Row],[세액]] -> 4680000 | J93: 4680000
A94: 2022-02-15 | B94: 제이제이컴퍼니 | C94: 레이저 복합기 | D94: 흑백 | E94: 253800 | F94: 3 | G94: =표1[[#This Row],[단가]]*표1[[#This Row],[수량]]/110% -> 692181.8182 | H94: =표1[[#This Row],[공급가액]]*10% -> 69218.18182 | I94: =표1[[#This Row],[공급가액]]+표1[[#This Row],[세액]] -> 761400 | J94: 761400
A95: 2022-02-15 | B95: 제이제이컴퍼니 | C95: 모니터1 | D95: 24인치 | E95: 180000 | F95: 5 | G95: =표1[[#This Row],[단가]]*표1[[#This Row],[수량]]/110% -> 818181.8182 | H95: =표1[[#This Row],[공급가액]]*10% -> 81818.18182 | I95: =표1[[#This Row],[공급가액]]+표1[[#This Row],[세액]] -> 900000 | J95: 900000
A96: 2022-02-15 | B96: 제이제이컴퍼니 | C96: 레이저 프린터 | D96: 흑백 | E96: 320000 | F96: 4 | G96: =표1[[#This Row],[단가]]*표1[[#This Row],[수량]]/110% -> 1163636.364 | H96: =표1[[#This Row],[공급가액]]*10% -> 116363.6364 | I96: =표1[[#This Row],[공급가액]]+표1[[#This Row],[세액]] -> 1280000 | J96: 1280000
A97: 2022-02-16 | B97: 킴앤정스튜디오 | C97: PC1 | D97: i7 | E97: 1170000 | F97: 1 | G97: =표1[[#This Row],[단가]]*표1[[#This Row],[수량]]/110% -> 1063636.364 | H97: =표1[[#This Row],[공급가액]]*10% -> 106363.6364 | I97: =표1[[#This Row],[공급가액]]+표1[[#This Row],[세액]] -> 1170000 | J97: 1170000
A98: 2022-02-16 | B98: 킴앤정스튜디오 | C98: 외장 하드 | D98: USB 3.0 | E98: 58500 | F98: 8 | G98: =표1[[#This Row],[단가]]*표1[[#This Row],[수량]]/110% -> 425454.5455 | H98: =표1[[#This Row],[공급가액]]*10% -> 42545.45455 | I98: =표1[[#This Row],[공급가액]]+표1[[#This Row],[세액]] -> 468000 | J98: 468000
A99: 2022-02-16 | B99: 킴앤정스튜디오 | C99: 마우스1 | D99: 유선 | E99: 13500 | F99: 7 | G99: =표1[[#This Row],[단가]]*표1[[#This Row],[수량]]/110% -> 85909.09091 | H99: =표1[[#This Row],[공급가액]]*10% -> 8590.909091 | I99: =표1[[#This Row],[공급가액]]+표1[[#This Row],[세액]] -> 94500 | J99: 94500
A100: 2022-02-16 | B100: 킴앤정스튜디오 | C100: 고급 복사지 | D100: 500매 | E100: 3000 | F100: 10 | G100: =표1[[#This Row],[단가]]*표1[[#This Row],[수량]]/110% -> 27272.72727 | H100: =표1[[#This Row],[공급가액]]*10% -> 2727.272727 | I100: =표1[[#This Row],[공급가액]]+표1[[#This Row],[세액]] -> 30000 | J100: 30000
A101: 2022-02-17 | B101: 우리열린교육 | C101: 마우스1 | D101: 유선 | E101: 13500 | F101: 10 | G101: =표1[[#This Row],[단가]]*표1[[#This Row],[수량]]/110% -> 122727.2727 | H101: =표1[[#This Row],[공급가액]]*10% -> 12272.72727 | I101: =표1[[#This Row],[공급가액]]+표1[[#This Row],[세액]] -> 135000 | J101: 135000
A102: 2022-02-17 | B102: 우리열린교육 | C102: 외장 하드 | D102: USB 3.0 | E102: 58500 | F102: 10 | G102: =표1[[#This Row],[단가]]*표1[[#This Row],[수량]]/110% -> 531818.1818 | H102: =표1[[#This Row],[공급가액]]*10% -> 53181.81818 | I102: =표1[[#This Row],[공급가액]]+표1[[#This Row],[세액]] -> 585000 | J102: 585000
A103: 2022-02-17 | B103: 우리열린교육 | C103: PC 스피커 | D103: 2채널 | E103: 135000 | F103: 6 | G103: =표1[[#This Row],[단가]]*표1[[#This Row],[수량]]/110% -> 736363.6364 | H103: =표1[[#This Row],[공급가액]]*10% -> 73636.36364 | I103: =표1[[#This Row],[공급가액]]+표1[[#This Row],[세액]] -> 810000 | J103: 810000
A104: 2022-02-18 | B104: 우리열린교육 | C104: 노트북1 | D104: 1kg 미만 | E104: 1260000 | F104: 4 | G104: =표1[[#This Row],[단가]]*표1[[#This Row],[수량]]/110% -> 4581818.182 | H104: =표1[[#This Row],[공급가액]]*10% -> 458181.8182 | I104: =표1[[#This Row],[공급가액]]+표1[[#This Row],[세액]] -> 5040000 | J104: 5040000
A105: 2022-02-18 | B105: 우리열린교육 | C105: PC1 | D105: i7 | E105: 1170000 | F105: 3 | G105: =표1[[#This Row],[단가]]*표1[[#This Row],[수량]]/110% -> 3190909.091 | H105: =표1[[#This Row],[공급가액]]*10% -> 319090.9091 | I105: =표1[[#This Row],[공급가액]]+표1[[#This Row],[세액]] -> 3510000 | J105: 3510000
A106: 2022-02-21 | B106: 은하수페이퍼 | C106: 고급 복사지 | D106: 500매 | E106: 3000 | F106: 6 | G106: =표1[[#This Row],[단가]]*표1[[#This Row],[수량]]/110% -> 16363.63636 | H106: =표1[[#This Row],[공급가액]]*10% -> 1636.363636 | I106: =표1[[#This Row],[공급가액]]+표1[[#This Row],[세액]] -> 18000 | J106: 18000
A107: 2022-02-21 | B107: 은하수페이퍼 | C107: PC1 | D107: i7 | E107: 1170000 | F107: 3 | G107: =표1[[#This Row],[단가]]*표1[[#This Row],[수량]]/110% -> 3190909.091 | H107: =표1[[#This Row],[공급가액]]*10% -> 319090.9091 | I107: =표1[[#This Row],[공급가액]]+표1[[#This Row],[세액]] -> 3510000 | J107: 3510000
A108: 2022-02-21 | B108: 은하수페이퍼 | C108: PC 스피커 | D108: 2채널 | E108: 135000 | F108: 10 | G108: =표1[[#This Row],[단가]]*표1[[#This Row],[수량]]/110% -> 1227272.727 | H108: =표1[[#This Row],[공급가액]]*10% -> 122727.2727 | I108: =표1[[#This Row],[공급가액]]+표1[[#This Row],[세액]] -> 1350000 | J108: 1350000
A109: 2022-02-22 | B109: May디자인 | C109: 잉크젯 프린터 | D109: 컬러 | E109: 324000 | F109: 10 | G109: =표1[[#This Row],[단가]]*표1[[#This Row],[수량]]/110% -> 2945454.545 | H109: =표1[[#This Row],[공급가액]]*10% -> 294545.4545 | I109: =표1[[#This Row],[공급가액]]+표1[[#This Row],[세액]] -> 3240000 | J109: 3240000
A110: 2022-02-22 | B110: May디자인 | C110: 마우스1 | D110: 유선 | E110: 13500 | F110: 1 | G110: =표1[[#This Row],[단가]]*표1[[#This Row],[수량]]/110% -> 12272.72727 | H110: =표1[[#This Row],[공급가액]]*10% -> 1227.272727 | I110: =표1[[#This Row],[공급가액]]+표1[[#This Row],[세액]] -> 13500 | J110: 13500
A111: 2022-02-23 | B111: May디자인 | C111: 모니터3 | D111: 30인치 | E111: 540000 | F111: 5 | G111: =표1[[#This Row],[단가]]*표1[[#This Row],[수량]]/110% -> 2454545.455 | H111: =표1[[#This Row],[공급가액]]*10% -> 245454.5455 | I111: =표1[[#This Row],[공급가액]]+표1[[#This Row],[세액]] -> 2700000 | J111: 2700000
A112: 2022-02-23 | B112: May디자인 | C112: 외장 하드 | D112: USB 3.0 | E112: 58500 | F112: 5 | G112: =표1[[#This Row],[단가]]*표1[[#This Row],[수량]]/110% -> 265909.0909 | H112: =표1[[#This Row],[공급가액]]*10% -> 26590.90909 | I112: =표1[[#This Row],[공급가액]]+표1[[#This Row],[세액]] -> 292500 | J112: 292500
A113: 2022-02-24 | B113: 영오디자인 | C113: 마우스1 | D113: 유선 | E113: 13500 | F113: 10 | G113: =표1[[#This Row],[단가]]*표1[[#This Row],[수량]]/110% -> 122727.2727 | H113: =표1[[#This Row],[공급가액]]*10% -> 12272.72727 | I113: =표1[[#This Row],[공급가액]]+표1[[#This Row],[세액]] -> 135000 | J113: 135000
A114: 2022-02-24 | B114: 영오디자인 | C114: 노트북2 | D114: 1.0~1.3kg | E114: 1080000 | F114: 6 | G114: =표1[[#This Row],[단가]]*표1[[#This Row],[수량]]/110% -> 5890909.091 | H114: =표1[[#This Row],[공급가액]]*10% -> 589090.9091 | I114: =표1[[#This Row],[공급가액]]+표1[[#This Row],[세액]] -> 6480000 | J114: 6480000
A115: 2022-02-24 | B115: 영오디자인 | C115: 키보드 | D115: 멤브레인 | E115: 18000 | F115: 2 | G115: =표1[[#This Row],[단가]]*표1[[#This Row],[수량]]/110% -> 32727.27273 | H115: =표1[[#This Row],[공급가액]]*10% -> 3272.727273 | I115: =표1[[#This Row],[공급가액]]+표1[[#This Row],[세액]] -> 36000 | J115: 36000
A116: 2022-02-24 | B116: 영오디자인 | C116: 잉크젯 프린터 | D116: 컬러 | E116: 324000 | F116: 3 | G116: =표1[[#This Row],[단가]]*표1[[#This Row],[수량]]/110% -> 883636.3636 | H116: =표1[[#This Row],[공급가액]]*10% -> 88363.63636 | I116: =표1[[#This Row],[공급가액]]+표1[[#This Row],[세액]] -> 972000 | J116: 972000
A117: 2022-02-24 | B117: 윤엔터테인먼트 | C117: 마우스2 | D117: 무선 | E117: 21600 | F117: 6 | G117: =표1[[#This Row],[단가]]*표1[[#This Row],[수량]]/110% -> 117818.1818 | H117: =표1[[#This Row],[공급가액]]*10% -> 11781.81818 | I117: =표1[[#This Row],[공급가액]]+표1[[#This Row],[세액]] -> 129600 | J117: 129600
A118: 2022-02-24 | B118: 윤엔터테인먼트 | C118: 마우스2 | D118: 무선 | E118: 21600 | F118: 10 | G118: =표1[[#This Row],[단가]]*표1[[#This Row],[수량]]/110% -> 196363.6364 | H118: =표1[[#This Row],[공급가액]]*10% -> 19636.36364 | I118: =표1[[#This Row],[공급가액]]+표1[[#This Row],[세액]] -> 216000 | J118: 216000
A119: 2022-02-24 | B119: 윤엔터테인먼트 | C119: PC 스피커 | D119: 2채널 | E119: 135000 | F119: 4 | G119: =표1[[#This Row],[단가]]*표1[[#This Row],[수량]]/110% -> 490909.0909 | H119: =표1[[#This Row],[공급가액]]*10% -> 49090.90909 | I119: =표1[[#This Row],[공급가액]]+표1[[#This Row],[세액]] -> 540000 | J119: 540000
A120: 2022-02-25 | B120: 영오디자인 | C120: 고급 복사지 | D120: 500매 | E120: 3000 | F120: 9 | G120: =표1[[#This Row],[단가]]*표1[[#This Row],[수량]]/110% -> 24545.45455 | H120: =표1[[#This Row],[공급가액]]*10% -> 2454.545455 | I120: =표1[[#This Row],[공급가액]]+표1[[#This Row],[세액]] -> 27000 | J120: 27000
A121: 2022-02-25 | B121: 영오디자인 | C121: 레이저 복합기 | D121: 흑백 | E121: 253800 | F121: 3 | G121: =표1[[#This Row],[단가]]*표1[[#This Row],[수량]]/110% -> 692181.8182 | H121: =표1[[#This Row],[공급가액]]*10% -> 69218.18182 | I121: =표1[[#This Row],[공급가액]]+표1[[#This Row],[세액]] -> 761400 | J121: 761400
A122: 2022-02-25 | B122: 영오디자인 | C122: 고급 복사지 | D122: 500매 | E122: 3000 | F122: 7 | G122: =표1[[#This Row],[단가]]*표1[[#This Row],[수량]]/110% -> 19090.90909 | H122: =표1[[#This Row],[공급가액]]*10% -> 1909.090909 | I122: =표1[[#This Row],[공급가액]]+표1[[#This Row],[세액]] -> 21000 | J122: 21000
A123: 2022-02-25 | B123: 영오디자인 | C123: 모니터1 | D123: 24인치 | E123: 180000 | F123: 3 | G123: =표1[[#This Row],[단가]]*표1[[#This Row],[수량]]/110% -> 490909.0909 | H123: =표1[[#This Row],[공급가액]]*10% -> 49090.90909 | I123: =표1[[#This Row],[공급가액]]+표1[[#This Row],[세액]] -> 540000 | J123: 540000
A124: 2022-02-25 | B124: 영오디자인 | C124: 노트북1 | D124: 1kg 미만 | E124: 1260000 | F124: 3 | G124: =표1[[#This Row],[단가]]*표1[[#This Row],[수량]]/110% -> 3436363.636 | H124: =표1[[#This Row],[공급가액]]*10% -> 343636.3636 | I124: =표1[[#This Row],[공급가액]]+표1[[#This Row],[세액]] -> 3780000 | J124: 3780000
A125: 2022-02-25 | B125: 교차로전자출판 | C125: PC 스피커 | D125: 2채널 | E125: 135000 | F125: 3 | G125: =표1[[#This Row],[단가]]*표1[[#This Row],[수량]]/110% -> 368181.8182 | H125: =표1[[#This Row],[공급가액]]*10% -> 36818.18182 | I125: =표1[[#This Row],[공급가액]]+표1[[#This Row],[세액]] -> 405000 | J125: 405000
A126: 2022-02-25 | B126: 교차로전자출판 | C126: 모니터1 | D126: 24인치 | E126: 180000 | F126: 1 | G126: =표1[[#This Row],[단가]]*표1[[#This Row],[수량]]/110% -> 163636.3636 | H126: =표1[[#This Row],[공급가액]]*10% -> 16363.63636 | I126: =표1[[#This Row],[공급가액]]+표1[[#This Row],[세액]] -> 180000 | J126: 180000
A127: 2022-02-25 | B127: 교차로전자출판 | C127: 레이저 복합기 | D127: 흑백 | E127: 253800 | F127: 2 | G127: =표1[[#This Row],[단가]]*표1[[#This Row],[수량]]/110% -> 461454.5455 | H127: =표1[[#This Row],[공급가액]]*10% -> 46145.45455 | I127: =표1[[#This Row],[공급가액]]+표1[[#This Row],[세액]] -> 507600 | J127: 507600
A128: 2022-02-25 | B128: 교차로전자출판 | C128: PC 스피커 | D128: 2채널 | E128: 135000 | F128: 4 | G128: =표1[[#This Row],[단가]]*표1[[#This Row],[수량]]/110% -> 490909.0909 | H128: =표1[[#This Row],[공급가액]]*10% -> 49090.90909 | I128: =표1[[#This Row],[공급가액]]+표1[[#This Row],[세액]] -> 540000 | J128: 540000
A129: 2022-02-28 | B129: 한국정보대학 | C129: 노트북2 | D129: 1.0~1.3kg | E129: 1080000 | F129: 2 | G129: =표1[[#This Row],[단가]]*표1[[#This Row],[수량]]/110% -> 1963636.364 | H129: =표1[[#This Row],[공급가액]]*10% -> 196363.6364 | I129: =표1[[#This Row],[공급가액]]+표1[[#This Row],[세액]] -> 2160000 | J129: 2160000
A130: 2022-02-28 | B130: 한국정보대학 | C130: 마우스1 | D130: 유선 | E130: 13500 | F130: 4 | G130: =표1[[#This Row],[단가]]*표1[[#This Row],[수량]]/110% -> 49090.90909 | H130: =표1[[#This Row],[공급가액]]*10% -> 4909.090909 | I130: =표1[[#This Row],[공급가액]]+표1[[#This Row],[세액]] -> 54000 | J130: 54000
A131: 2022-02-28 | B131: 한국정보대학 | C131: 외장 하드 | D131: USB 3.0 | E131: 58500 | F131: 6 | G131: =표1[[#This Row],[단가]]*표1[[#This Row],[수량]]/110% -> 319090.9091 | H131: =표1[[#This Row],[공급가액]]*10% -> 31909.09091 | I131: =표1[[#This Row],[공급가액]]+표1[[#This Row],[세액]] -> 351000 | J131: 351000
A132: 2022-02-28 | B132: 한국정보대학 | C132: 마우스1 | D132: 유선 | E132: 13500 | F132: 5 | G132: =표1[[#This Row],[단가]]*표1[[#This Row],[수량]]/110% -> 61363.63636 | H132: =표1[[#This Row],[공급가액]]*10% -> 6136.363636 | I132: =표1[[#This Row],[공급가액]]+표1[[#This Row],[세액]] -> 67500 | J132: 67500
A133: 2022-02-28 | B133: 한국정보대학 | C133: 잉크젯 프린터 | D133: 컬러 | E133: 324000 | F133: 2 | G133: =표1[[#This Row],[단가]]*표1[[#This Row],[수량]]/110% -> 589090.9091 | H133: =표1[[#This Row],[공급가액]]*10% -> 58909.09091 | I133: =표1[[#This Row],[공급가액]]+표1[[#This Row],[세액]] -> 648000 | J133: 648000
A134: 2022-03-01 | B134: 영오디자인 | C134: 모니터3 | D134: 30인치 | E134: 540000 | F134: 3 | G134: =표1[[#This Row],[단가]]*표1[[#This Row],[수량]]/110% -> 1472727.273 | H134: =표1[[#This Row],[공급가액]]*10% -> 147272.7273 | I134: =표1[[#This Row],[공급가액]]+표1[[#This Row],[세액]] -> 1620000 | J134: 1620000
A135: 2022-03-01 | B135: 영오디자인 | C135: 마우스2 | D135: 무선 | E135: 21600 | F135: 1 | G135: =표1[[#This Row],[단가]]*표1[[#This Row],[수량]]/110% -> 19636.36364 | H135: =표1[[#This Row],[공급가액]]*10% -> 1963.636364 | I135: =표1[[#This Row],[공급가액]]+표1[[#This Row],[세액]] -> 21600 | J135: 21600
A136: 2022-03-01 | B136: 영오디자인 | C136: PC2 | D136: i5 | E136: 990000 | F136: 8 | G136: =표1[[#This Row],[단가]]*표1[[#This Row],[수량]]/110% -> 7200000 | H136: =표1[[#This Row],[공급가액]]*10% -> 720000 | I136: =표1[[#This Row],[공급가액]]+표1[[#This Row],[세액]] -> 7920000 | J136: 7920000
A137: 2022-03-01 | B137: 영오디자인 | C137: PC1 | D137: i7 | E137: 1170000 | F137: 4 | G137: =표1[[#This Row],[단가]]*표1[[#This Row],[수량]]/110% -> 4254545.455 | H137: =표1[[#This Row],[공급가액]]*10% -> 425454.5455 | I137: =표1[[#This Row],[공급가액]]+표1[[#This Row],[세액]] -> 4680000 | J137: 4680000
A138: 2022-03-01 | B138: 영오디자인 | C138: 잉크젯 프린터 | D138: 컬러 | E138: 324000 | F138: 4 | G138: =표1[[#This Row],[단가]]*표1[[#This Row],[수량]]/110% -> 1178181.818 | H138: =표1[[#This Row],[공급가액]]*10% -> 117818.1818 | I138: =표1[[#This Row],[공급가액]]+표1[[#This Row],[세액]] -> 1296000 | J138: 1296000
A139: 2022-03-01 | B139: 최고무역 | C139: PC2 | D139: i5 | E139: 990000 | F139: 4 | G139: =표1[[#This Row],[단가]]*표1[[#This Row],[수량]]/110% -> 3600000 | H139: =표1[[#This Row],[공급가액]]*10% -> 360000 | I139: =표1[[#This Row],[공급가액]]+표1[[#This Row],[세액]] -> 3960000 | J139: 3960000
A140: 2022-03-02 | B140: 제이제이컴퍼니 | C140: PC 스피커 | D140: 2채널 | E140: 135000 | F140: 6 | G140: =표1[[#This Row],[단가]]*표1[[#This Row],[수량]]/110% -> 736363.6364 | H140: =표1[[#This Row],[공급가액]]*10% -> 73636.36364 | I140: =표1[[#This Row],[공급가액]]+표1[[#This Row],[세액]] -> 810000 | J140: 810000
A141: 2022-03-02 | B141: 제이제이컴퍼니 | C141: 외장 하드 | D141: USB 3.0 | E141: 58500 | F141: 4 | G141: =표1[[#This Row],[단가]]*표1[[#This Row],[수량]]/110% -> 212727.2727 | H141: =표1[[#This Row],[공급가액]]*10% -> 21272.72727 | I141: =표1[[#This Row],[공급가액]]+표1[[#This Row],[세액]] -> 234000 | J141: 234000
A142: 2022-03-02 | B142: 제이제이컴퍼니 | C142: 키보드 | D142: 멤브레인 | E142: 18000 | F142: 7 | G142: =표1[[#This Row],[단가]]*표1[[#This Row],[수량]]/110% -> 114545.4545 | H142: =표1[[#This Row],[공급가액]]*10% -> 11454.54545 | I142: =표1[[#This Row],[공급가액]]+표1[[#This Row],[세액]] -> 126000 | J142: 126000
A143: 2022-03-03 | B143: 도서출판나무그늘 | C143: PC 스피커 | D143: 2채널 | E143: 135000 | F143: 5 | G143: =표1[[#This Row],[단가]]*표1[[#This Row],[수량]]/110% -> 613636.3636 | H143: =표1[[#This Row],[공급가액]]*10% -> 61363.63636 | I143: =표1[[#This Row],[공급가액]]+표1[[#This Row],[세액]] -> 675000 | J143: 675000
A144: 2022-03-03 | B144: 도서출판나무그늘 | C144: 모니터3 | D144: 30인치 | E144: 540000 | F144: 9 | G144: =표1[[#This Row],[단가]]*표1[[#This Row],[수량]]/110% -> 4418181.818 | H144: =표1[[#This Row],[공급가액]]*10% -> 441818.1818 | I144: =표1[[#This Row],[공급가액]]+표1[[#This Row],[세액]] -> 4860000 | J144: 4860000
A145: 2022-03-04 | B145: 은하수페이퍼 | C145: 마우스1 | D145: 유선 | E145: 13500 | F145: 5 | G145: =표1[[#This Row],[단가]]*표1[[#This Row],[수량]]/110% -> 61363.63636 | H145: =표1[[#This Row],[공급가액]]*10% -> 6136.363636 | I145: =표1[[#This Row],[공급가액]]+표1[[#This Row],[세액]] -> 67500 | J145: 67500
A146: 2022-03-04 | B146: 은하수페이퍼 | C146: 잉크젯 프린터 | D146: 컬러 | E146: 324000 | F146: 6 | G146: =표1[[#This Row],[단가]]*표1[[#This Row],[수량]]/110% -> 1767272.727 | H146: =표1[[#This Row],[공급가액]]*10% -> 176727.2727 | I146: =표1[[#This Row],[공급가액]]+표1[[#This Row],[세액]] -> 1944000 | J146: 1944000
A147: 2022-03-04 | B147: 은하수페이퍼 | C147: 레이저 복합기 | D147: 흑백 | E147: 253800 | F147: 5 | G147: =표1[[#This Row],[단가]]*표1[[#This Row],[수량]]/110% -> 1153636.364 | H147: =표1[[#This Row],[공급가액]]*10% -> 115363.6364 | I147: =표1[[#This Row],[공급가액]]+표1[[#This Row],[세액]] -> 1269000 | J147: 1269000
A148: 2022-03-04 | B148: 은하수페이퍼 | C148: 고급 복사지 | D148: 500매 | E148: 3000 | F148: 9 | G148: =표1[[#This Row],[단가]]*표1[[#This Row],[수량]]/110% -> 24545.45455 | H148: =표1[[#This Row],[공급가액]]*10% -> 2454.545455 | I148: =표1[[#This Row],[공급가액]]+표1[[#This Row],[세액]] -> 27000 | J148: 27000
A149: 2022-03-07 | B149: 은하수페이퍼 | C149: 레이저 프린터 | D149: 흑백 | E149: 320000 | F149: 3 | G149: =표1[[#This Row],[단가]]*표1[[#This Row],[수량]]/110% -> 872727.2727 | H149: =표1[[#This Row],[공급가액]]*10% -> 87272.72727 | I149: =표1[[#This Row],[공급가액]]+표1[[#This Row],[세액]] -> 960000 | J149: 960000
A150: 2022-03-07 | B150: 은하수페이퍼 | C150: 키보드 | D150: 멤브레인 | E150: 18000 | F150: 8 | G150: =표1[[#This Row],[단가]]*표1[[#This Row],[수량]]/110% -> 130909.0909 | H150: =표1[[#This Row],[공급가액]]*10% -> 13090.90909 | I150: =표1[[#This Row],[공급가액]]+표1[[#This Row],[세액]] -> 144000 | J150: 144000
A151: 2022-03-08 | B151: 산들닷컴 | C151: 외장 하드 | D151: USB 3.0 | E151: 58500 | F151: 2 | G151: =표1[[#This Row],[단가]]*표1[[#This Row],[수량]]/110% -> 106363.6364 | H151: =표1[[#This Row],[공급가액]]*10% -> 10636.36364 | I151: =표1[[#This Row],[공급가액]]+표1[[#This Row],[세액]] -> 117000 | J151: 117000
A152: 2022-03-08 | B152: 산들닷컴 | C152: 레이저 프린터 | D152: 흑백 | E152: 320000 | F152: 5 | G152: =표1[[#This Row],[단가]]*표1[[#This Row],[수량]]/110% -> 1454545.455 | H152: =표1[[#This Row],[공급가액]]*10% -> 145454.5455 | I152: =표1[[#This Row],[공급가액]]+표1[[#This Row],[세액]] -> 1600000 | J152: 1600000
A153: 2022-03-08 | B153: 이한아이티 | C153: PC 스피커 | D153: 2채널 | E153: 135000 | F153: 9 | G153: =표1[[#This Row],[단가]]*표1[[#This Row],[수량]]/110% -> 1104545.455 | H153: =표1[[#This Row],[공급가액]]*10% -> 110454.5455 | I153: =표1[[#This Row],[공급가액]]+표1[[#This Row],[세액]] -> 1215000 | J153: 1215000
A154: 2022-03-08 | B154: 이한아이티 | C154: 키보드 | D154: 멤브레인 | E154: 18000 | F154: 9 | G154: =표1[[#This Row],[단가]]*표1[[#This Row],[수량]]/110% -> 147272.7273 | H154: =표1[[#This Row],[공급가액]]*10% -> 14727.27273 | I154: =표1[[#This Row],[공급가액]]+표1[[#This Row],[세액]] -> 162000 | J154: 162000
A155: 2022-03-09 | B155: 이한아이티 | C155: 공유기 | D155: 기가비트 | E155: 72000 | F155: 1 | G155: =표1[[#This Row],[단가]]*표1[[#This Row],[수량]]/110% -> 65454.54545 | H155: =표1[[#This Row],[공급가액]]*10% -> 6545.454545 | I155: =표1[[#This Row],[공급가액]]+표1[[#This Row],[세액]] -> 72000 | J155: 72000
A156: 2022-03-09 | B156: 이한아이티 | C156: 마우스1 | D156: 유선 | E156: 13500 | F156: 8 | G156: =표1[[#This Row],[단가]]*표1[[#This Row],[수량]]/110% -> 98181.81818 | H156: =표1[[#This Row],[공급가액]]*10% -> 9818.181818 | I156: =표1[[#This Row],[공급가액]]+표1[[#This Row],[세액]] -> 108000 | J156: 108000
A157: 2022-03-09 | B157: 이한아이티 | C157: 레이저 복합기 | D157: 흑백 | E157: 253800 | F157: 1 | G157: =표1[[#This Row],[단가]]*표1[[#This Row],[수량]]/110% -> 230727.2727 | H157: =표1[[#This Row],[공급가액]]*10% -> 23072.72727 | I157: =표1[[#This Row],[공급가액]]+표1[[#This Row],[세액]] -> 253800 | J157: 253800
A158: 2022-03-10 | B158: 영오디자인 | C158: 고급 복사지 | D158: 500매 | E158: 3000 | F158: 5 | G158: =표1[[#This Row],[단가]]*표1[[#This Row],[수량]]/110% -> 13636.36364 | H158: =표1[[#This Row],[공급가액]]*10% -> 1363.636364 | I158: =표1[[#This Row],[공급가액]]+표1[[#This Row],[세액]] -> 15000 | J158: 15000
A159: 2022-03-10 | B159: 영오디자인 | C159: 노트북2 | D159: 1.0~1.3kg | E159: 1080000 | F159: 1 | G159: =표1[[#This Row],[단가]]*표1[[#This Row],[수량]]/110% -> 981818.1818 | H159: =표1[[#This Row],[공급가액]]*10% -> 98181.81818 | I159: =표1[[#This Row],[공급가액]]+표1[[#This Row],[세액]] -> 1080000 | J159: 1080000
A160: 2022-03-10 | B160: 영오디자인 | C160: 레이저 복합기 | D160: 흑백 | E160: 253800 | F160: 9 | G160: =표1[[#This Row],[단가]]*표1[[#This Row],[수량]]/110% -> 2076545.455 | H160: =표1[[#This Row],[공급가액]]*10% -> 207654.5455 | I160: =표1[[#This Row],[공급가액]]+표1[[#This Row],[세액]] -> 2284200 | J160: 2284200
A161: 2022-03-11 | B161: 교차로전자출판 | C161: PC 스피커 | D161: 2채널 | E161: 135000 | F161: 5 | G161: =표1[[#This Row],[단가]]*표1[[#This Row],[수량]]/110% -> 613636.3636 | H161: =표1[[#This Row],[공급가액]]*10% -> 61363.63636 | I161: =표1[[#This Row],[공급가액]]+표1[[#This Row],[세액]] -> 675000 | J161: 675000
A162: 2022-03-11 | B162: 교차로전자출판 | C162: PC1 | D162: i7 | E162: 1170000 | F162: 3 | G162: =표1[[#This Row],[단가]]*표1[[#This Row],[수량]]/110% -> 3190909.091 | H162: =표1[[#This Row],[공급가액]]*10% -> 319090.9091 | I162: =표1[[#This Row],[공급가액]]+표1[[#This Row],[세액]] -> 3510000 | J162: 3510000
A163: 2022-03-11 | B163: 교차로전자출판 | C163: 마우스1 | D163: 유선 | E163: 13500 | F163: 10 | G163: =표1[[#This Row],[단가]]*표1[[#This Row],[수량]]/110% -> 122727.2727 | H163: =표1[[#This Row],[공급가액]]*10% -> 12272.72727 | I163: =표1[[#This Row],[공급가액]]+표1[[#This Row],[세액]] -> 135000 | J163: 135000
A164: 2022-03-14 | B164: 이지스퍼블리싱 | C164: 마우스1 | D164: 유선 | E164: 13500 | F164: 8 | G164: =표1[[#This Row],[단가]]*표1[[#This Row],[수량]]/110% -> 98181.81818 | H164: =표1[[#This Row],[공급가액]]*10% -> 9818.181818 | I164: =표1[[#This Row],[공급가액]]+표1[[#This Row],[세액]] -> 108000 | J164: 108000
A165: 2022-03-14 | B165: 이지스퍼블리싱 | C165: 모니터1 | D165: 24인치 | E165: 180000 | F165: 8 | G165: =표1[[#This Row],[단가]]*표1[[#This Row],[수량]]/110% -> 1309090.909 | H165: =표1[[#This Row],[공급가액]]*10% -> 130909.0909 | I165: =표1[[#This Row],[공급가액]]+표1[[#This Row],[세액]] -> 1440000 | J165: 1440000
A166: 2022-03-14 | B166: 이지스퍼블리싱 | C166: 레이저 복합기 | D166: 흑백 | E166: 253800 | F166: 4 | G166: =표1[[#This Row],[단가]]*표1[[#This Row],[수량]]/110% -> 922909.0909 | H166: =표1[[#This Row],[공급가액]]*10% -> 92290.90909 | I166: =표1[[#This Row],[공급가액]]+표1[[#This Row],[세액]] -> 1015200 | J166: 1015200
A167: 2022-03-15 | B167: 제이제이컴퍼니 | C167: PC2 | D167: i5 | E167: 990000 | F167: 6 | G167: =표1[[#This Row],[단가]]*표1[[#This Row],[수량]]/110% -> 5400000 | H167: =표1[[#This Row],[공급가액]]*10% -> 540000 | I167: =표1[[#This Row],[공급가액]]+표1[[#This Row],[세액]] -> 5940000 | J167: 5940000
A168: 2022-03-15 | B168: 제이제이컴퍼니 | C168: 노트북1 | D168: 1kg 미만 | E168: 1260000 | F168: 1 | G168: =표1[[#This Row],[단가]]*표1[[#This Row],[수량]]/110% -> 1145454.545 | H168: =표1[[#This Row],[공급가액]]*10% -> 114545.4545 | I168: =표1[[#This Row],[공급가액]]+표1[[#This Row],[세액]] -> 1260000 | J168: 1260000
A169: 2022-03-15 | B169: 제이제이컴퍼니 | C169: 키보드 | D169: 멤브레인 | E169: 18000 | F169: 2 | G169: =표1[[#This Row],[단가]]*표1[[#This Row],[수량]]/110% -> 32727.27273 | H169: =표1[[#This Row],[공급가액]]*10% -> 3272.727273 | I169: =표1[[#This Row],[공급가액]]+표1[[#This Row],[세액]] -> 36000 | J169: 36000
A170: 2022-03-16 | B170: 그린미디어㈜ | C170: PC 스피커 | D170: 2채널 | E170: 135000 | F170: 1 | G170: =표1[[#This Row],[단가]]*표1[[#This Row],[수량]]/110% -> 122727.2727 | H170: =표1[[#This Row],[공급가액]]*10% -> 12272.72727 | I170: =표1[[#This Row],[공급가액]]+표1[[#This Row],[세액]] -> 135000 | J170: 135000
A171: 2022-03-16 | B171: 그린미디어㈜ | C171: 레이저 복합기 | D171: 흑백 | E171: 253800 | F171: 4 | G171: =표1[[#This Row],[단가]]*표1[[#This Row],[수량]]/110% -> 922909.0909 | H171: =표1[[#This Row],[공급가액]]*10% -> 92290.90909 | I171: =표1[[#This Row],[공급가액]]+표1[[#This Row],[세액]] -> 1015200 | J171: 1015200
A172: 2022-03-17 | B172: 파워엔지니어링 | C172: 외장 하드 | D172: USB 3.0 | E172: 58500 | F172: 6 | G172: =표1[[#This Row],[단가]]*표1[[#This Row],[수량]]/110% -> 319090.9091 | H172: =표1[[#This Row],[공급가액]]*10% -> 31909.09091 | I172: =표1[[#This Row],[공급가액]]+표1[[#This Row],[세액]] -> 351000 | J172: 351000
A173: 2022-03-17 | B173: 파워엔지니어링 | C173: 마우스1 | D173: 유선 | E173: 13500 | F173: 7 | G173: =표1[[#This Row],[단가]]*표1[[#This Row],[수량]]/110% -> 85909.09091 | H173: =표1[[#This Row],[공급가액]]*10% -> 8590.909091 | I173: =표1[[#This Row],[공급가액]]+표1[[#This Row],[세액]] -> 94500 | J173: 94500
A174: 2022-03-18 | B174: 은하수페이퍼 | C174: 노트북2 | D174: 1.0~1.3kg | E174: 1080000 | F174: 5 | G174: =표1[[#This Row],[단가]]*표1[[#This Row],[수량]]/110% -> 4909090.909 | H174: =표1[[#This Row],[공급가액]]*10% -> 490909.0909 | I174: =표1[[#This Row],[공급가액]]+표1[[#This Row],[세액]] -> 5400000 | J174: 5400000
A175: 2022-03-18 | B175: 은하수페이퍼 | C175: 레이저 복합기 | D175: 흑백 | E175: 253800 | F175: 4 | G175: =표1[[#This Row],[단가]]*표1[[#This Row],[수량]]/110% -> 922909.0909 | H175: =표1[[#This Row],[공급가액]]*10% -> 92290.90909 | I175: =표1[[#This Row],[공급가액]]+표1[[#This Row],[세액]] -> 1015200 | J175: 1015200
A176: 2022-03-18 | B176: 은하수페이퍼 | C176: PC 스피커 | D176: 2채널 | E176: 135000 | F176: 1 | G176: =표1[[#This Row],[단가]]*표1[[#This Row],[수량]]/110% -> 122727.2727 | H176: =표1[[#This Row],[공급가액]]*10% -> 12272.72727 | I176: =표1[[#This Row],[공급가액]]+표1[[#This Row],[세액]] -> 135000 | J176: 135000
A177: 2022-03-18 | B177: 은하수페이퍼 | C177: 모니터1 | D177: 24인치 | E177: 180000 | F177: 1 | G177: =표1[[#This Row],[단가]]*표1[[#This Row],[수량]]/110% -> 163636.3636 | H177: =표1[[#This Row],[공급가액]]*10% -> 16363.63636 | I177: =표1[[#This Row],[공급가액]]+표1[[#This Row],[세액]] -> 180000 | J177: 180000
A178: 2022-03-18 | B178: 은하수페이퍼 | C178: PC1 | D178: i7 | E178: 1170000 | F178: 4 | G178: =표1[[#This Row],[단가]]*표1[[#This Row],[수량]]/110% -> 4254545.455 | H178: =표1[[#This Row],[공급가액]]*10% -> 425454.5455 | I178: =표1[[#This Row],[공급가액]]+표1[[#This Row],[세액]] -> 4680000 | J178: 4680000
A179: 2022-03-21 | B179: 도서출판나무그늘 | C179: 마우스2 | D179: 무선 | E179: 21600 | F179: 4 | G179: =표1[[#This Row],[단가]]*표1[[#This Row],[수량]]/110% -> 78545.45455 | H179: =표1[[#This Row],[공급가액]]*10% -> 7854.545455 | I179: =표1[[#This Row],[공급가액]]+표1[[#This Row],[세액]] -> 86400 | J179: 86400
A180: 2022-03-21 | B180: 도서출판나무그늘 | C180: 노트북2 | D180: 1.0~1.3kg | E180: 1080000 | F180: 5 | G180: =표1[[#This Row],[단가]]*표1[[#This Row],[수량]]/110% -> 4909090.909 | H180: =표1[[#This Row],[공급가액]]*10% -> 490909.0909 | I180: =표1[[#This Row],[공급가액]]+표1[[#This Row],[세액]] -> 5400000 | J180: 5400000
A181: 2022-03-21 | B181: 도서출판나무그늘 | C181: 키보드 | D181: 멤브레인 | E181: 18000 | F181: 10 | G181: =표1[[#This Row],[단가]]*표1[[#This Row],[수량]]/110% -> 163636.3636 | H181: =표1[[#This Row],[공급가액]]*10% -> 16363.63636 | I181: =표1[[#This Row],[공급가액]]+표1[[#This Row],[세액]] -> 180000 | J181: 180000
A182: 2022-03-21 | B182: 도서출판나무그늘 | C182: PC2 | D182: i5 | E182: 990000 | F182: 5 | G182: =표1[[#This Row],[단가]]*표1[[#This Row],[수량]]/110% -> 4500000 | H182: =표1[[#This Row],[공급가액]]*10% -> 450000 | I182: =표1[[#This Row],[공급가액]]+표1[[#This Row],[세액]] -> 4950000 | J182: 4950000
A183: 2022-03-22 | B183: 산들닷컴 | C183: 마우스1 | D183: 유선 | E183: 13500 | F183: 3 | G183: =표1[[#This Row],[단가]]*표1[[#This Row],[수량]]/110% -> 36818.18182 | H183: =표1[[#This Row],[공급가액]]*10% -> 3681.818182 | I183: =표1[[#This Row],[공급가액]]+표1[[#This Row],[세액]] -> 40500 | J183: 40500
A184: 2022-03-22 | B184: 산들닷컴 | C184: 노트북1 | D184: 1kg 미만 | E184: 1260000 | F184: 3 | G184: =표1[[#This Row],[단가]]*표1[[#This Row],[수량]]/110% -> 3436363.636 | H184: =표1[[#This Row],[공급가액]]*10% -> 343636.3636 | I184: =표1[[#This Row],[공급가액]]+표1[[#This Row],[세액]] -> 3780000 | J184: 3780000
A185: 2022-03-22 | B185: 산들닷컴 | C185: 마우스1 | D185: 유선 | E185: 13500 | F185: 6 | G185: =표1[[#This Row],[단가]]*표1[[#This Row],[수량]]/110% -> 73636.36364 | H185: =표1[[#This Row],[공급가액]]*10% -> 7363.636364 | I185: =표1[[#This Row],[공급가액]]+표1[[#This Row],[세액]] -> 81000 | J185: 81000
A186: 2022-03-22 | B186: 산들닷컴 | C186: 외장 하드 | D186: USB 3.0 | E186: 58500 | F186: 5 | G186: =표1[[#This Row],[단가]]*표1[[#This Row],[수량]]/110% -> 265909.0909 | H186: =표1[[#This Row],[공급가액]]*10% -> 26590.90909 | I186: =표1[[#This Row],[공급가액]]+표1[[#This Row],[세액]] -> 292500 | J186: 292500
A187: 2022-03-23 | B187: 우리열린교육 | C187: 마우스1 | D187: 유선 | E187: 13500 | F187: 7 | G187: =표1[[#This Row],[단가]]*표1[[#This Row],[수량]]/110% -> 85909.09091 | H187: =표1[[#This Row],[공급가액]]*10% -> 8590.909091 | I187: =표1[[#This Row],[공급가액]]+표1[[#This Row],[세액]] -> 94500 | J187: 94500
A188: 2022-03-24 | B188: 한국정보대학 | C188: 모니터2 | D188: 27인치 | E188: 270000 | F188: 1 | G188: =표1[[#This Row],[단가]]*표1[[#This Row],[수량]]/110% -> 245454.5455 | H188: =표1[[#This Row],[공급가액]]*10% -> 24545.45455 | I188: =표1[[#This Row],[공급가액]]+표1[[#This Row],[세액]] -> 270000 | J188: 270000
A189: 2022-03-24 | B189: 한국정보대학 | C189: 레이저 복합기 | D189: 흑백 | E189: 253800 | F189: 5 | G189: =표1[[#This Row],[단가]]*표1[[#This Row],[수량]]/110% -> 1153636.364 | H189: =표1[[#This Row],[공급가액]]*10% -> 115363.6364 | I189: =표1[[#This Row],[공급가액]]+표1[[#This Row],[세액]] -> 1269000 | J189: 1269000
A190: 2022-03-24 | B190: 한국정보대학 | C190: 마우스1 | D190: 유선 | E190: 13500 | F190: 2 | G190: =표1[[#This Row],[단가]]*표1[[#This Row],[수량]]/110% -> 24545.45455 | H190: =표1[[#This Row],[공급가액]]*10% -> 2454.545455 | I190: =표1[[#This Row],[공급가액]]+표1[[#This Row],[세액]] -> 27000 | J190: 27000
A191: 2022-03-25 | B191: 도서출판나무그늘 | C191: 키보드 | D191: 멤브레인 | E191: 18000 | F191: 2 | G191: =표1[[#This Row],[단가]]*표1[[#This Row],[수량]]/110% -> 32727.27273 | H191: =표1[[#This Row],[공급가액]]*10% -> 3272.727273 | I191: =표1[[#This Row],[공급가액]]+표1[[#This Row],[세액]] -> 36000 | J191: 36000
A192: 2022-03-25 | B192: 도서출판나무그늘 | C192: PC 스피커 | D192: 2채널 | E192: 135000 | F192: 3 | G192: =표1[[#This Row],[단가]]*표1[[#This Row],[수량]]/110% -> 368181.8182 | H192: =표1[[#This Row],[공급가액]]*10% -> 36818.18182 | I192: =표1[[#This Row],[공급가액]]+표1[[#This Row],[세액]] -> 405000 | J192: 405000
A193: 2022-03-28 | B193: 한국정보대학 | C193: 고급 복사지 | D193: 500매 | E193: 3000 | F193: 5 | G193: =표1[[#This Row],[단가]]*표1[[#This Row],[수량]]/110% -> 13636.36364 | H193: =표1[[#This Row],[공급가액]]*10% -> 1363.636364 | I193: =표1[[#This Row],[공급가액]]+표1[[#This Row],[세액]] -> 15000 | J193: 15000
A194: 2022-03-28 | B194: 한국정보대학 | C194: 모니터1 | D194: 24인치 | E194: 180000 | F194: 7 | G194: =표1[[#This Row],[단가]]*표1[[#This Row],[수량]]/110% -> 1145454.545 | H194: =표1[[#This Row],[공급가액]]*10% -> 114545.4545 | I194: =표1[[#This Row],[공급가액]]+표1[[#This Row],[세액]] -> 1260000 | J194: 1260000
A195: 2022-03-29 | B195: 그린미디어㈜ | C195: PC2 | D195: i5 | E195: 990000 | F195: 9 | G195: =표1[[#This Row],[단가]]*표1[[#This Row],[수량]]/110% -> 8100000 | H195: =표1[[#This Row],[공급가액]]*10% -> 810000 | I195: =표1[[#This Row],[공급가액]]+표1[[#This Row],[세액]] -> 8910000 | J195: 8910000
A196: 2022-03-30 | B196: 도서출판나무그늘 | C196: 마우스1 | D196: 유선 | E196: 13500 | F196: 2 | G196: =표1[[#This Row],[단가]]*표1[[#This Row],[수량]]/110% -> 24545.45455 | H196: =표1[[#This Row],[공급가액]]*10% -> 2454.545455 | I196: =표1[[#This Row],[공급가액]]+표1[[#This Row],[세액]] -> 27000 | J196: 27000
A197: 2022-03-30 | B197: 도서출판나무그늘 | C197: 잉크젯 프린터 | D197: 컬러 | E197: 324000 | F197: 3 | G197: =표1[[#This Row],[단가]]*표1[[#This Row],[수량]]/110% -> 883636.3636 | H197: =표1[[#This Row],[공급가액]]*10% -> 88363.63636 | I197: =표1[[#This Row],[공급가액]]+표1[[#This Row],[세액]] -> 972000 | J197: 972000
A198: 2022-03-31 | B198: 교차로전자출판 | C198: 마우스1 | D198: 유선 | E198: 13500 | F198: 1 | G198: =표1[[#This Row],[단가]]*표1[[#This Row],[수량]]/110% -> 12272.72727 | H198: =표1[[#This Row],[공급가액]]*10% -> 1227.272727 | I198: =표1[[#This Row],[공급가액]]+표1[[#This Row],[세액]] -> 13500 | J198: 13500
A199: 2022-03-31 | B199: 교차로전자출판 | C199: 레이저 복합기 | D199: 흑백 | E199: 253800 | F199: 3 | G199: =표1[[#This Row],[단가]]*표1[[#This Row],[수량]]/110% -> 692181.8182 | H199: =표1[[#This Row],[공급가액]]*10% -> 69218.18182 | I199: =표1[[#This Row],[공급가액]]+표1[[#This Row],[세액]] -> 761400 | J199: 761400
A200: 2022-03-31 | B200: 교차로전자출판 | C200: 모니터1 | D200: 24인치 | E200: 180000 | F200: 5 | G200: =표1[[#This Row],[단가]]*표1[[#This Row],[수량]]/110% -> 818181.8182 | H200: =표1[[#This Row],[공급가액]]*10% -> 81818.18182 | I200: =표1[[#This Row],[공급가액]]+표1[[#This Row],[세액]] -> 900000 | J200: 900000
... 746 more rows

Sheet Sheet1

Sheet Sheet2

Sheet Sheet3
